[Event "Israel-ch Youth U8-18 2024"]
[Site "Kfar Saba"]
[Date "2024.04.17"]
[Round "2.14"]
[White "Hoch, Guy"]
[Black "Ben-Haim, Harel"]
[Result "0-1"]
[ECO "E01"]
[WhiteElo "1685"]
[BlackElo "1513"]
[Annotator "NA RC COMBH"]
[PlyCount "126"]
[EventDate "2024.04.10"]
[EventType "swiss"]
[EventCountry "ISR"]
[SourceTitle "playchess.com"]
[Source "ChessBase"]
[SourceQuality "1"]
[TimeControl "5400+30"]

1. Nf3 {[%emt 0:00:31]} d5 {[%emt 0:00:06]} 2. g3 {[%emt 0:00:35]} Nf6 {[%emt 0:00:11]} 3. Bg2 {[%emt 0:00:34]} e6 {[%emt 0:00:11]} 4. O-O {[%emt 0:00:36]} Bd6 {[%emt 0:00:11]} 5. d4 {[%emt 0:00:45]} O-O {[%emt 0:00:09]} 6. c4 {[%emt 0:00:40]} c6 {[%emt 0:00:30]} 7. Nc3 {[%emt 0:01:31]} Nbd7 {[%emt 0:00:56]} 8. b3 {[%emt 0:01:38]} Qe7 {[%emt 0:03:26]} 9. Bb2 {[%emt 0:01:06]} h6 {[%emt 0:01:47]} 10. Re1 {[%emt 0:01:12]} Re8 {[%emt 0:04:25]} 11. e4 {[%emt 0:01:26]} dxe4 {[%emt 0:00:43]} 12. Nxe4 {[%emt 0:01:27]} Nxe4 {[%emt 0:01:12]} 13. Rxe4 {[%emt 0:00:29]} Nf6 {[%emt 0:00:07]} 14. Re1 {[%emt 1:25:00]} Ba3 {[%emt 0:07:36]} 15. Qc2 {[%emt 0:00:00]} Bxb2 {[%emt 0:00:13]} 16. Qxb2 {[%emt 0:00:00]} Bd7 {[%emt 0:02:46]} 17. Rad1 {[%emt 0:00:00]} Rac8 {[%emt 0:07:07]} 18. Rd2 {[%emt 0:00:00]} a5 {[%emt 0:03:09]} 19. a3 {[%emt 0:00:00]} b5 {[%emt 0:03:49]} 20. c5 {[%emt 0:00:00]} b4 {[%emt 0:00:50]} 21. a4 {[%emt 0:00:00]} Nd5 {[%emt 0:02:49]} 22. Ne5 {[%emt 0:00:00]} Nc3 {[%emt 0:01:44]} 23. Nc4 {[%emt 0:00:00]} Ra8 {[%emt 0:02:23]} 24. Nd6 {[%emt 0:00:00]} Reb8 {[%emt 0:03:44]} 25. Rd3 {[%emt 0:00:00]} Qg5 {[%emt 0:06:45]} 26. Ne4 {[%emt 0:00:00]} Nxe4 {[%emt 0:05:42]} 27. Bxe4 {[%emt 0:00:00]} Rd8 {[%emt 0:02:58]} 28. Qd2 {[%emt 0:00:00]} Qxd2 {[%emt 0:00:56]} 29. Rxd2 {[%emt 0:00:00]} Re8 {[%emt 0:02:15]} 30. Bg2 {[%emt 0:00:00]} Rad8 {[%emt 0:02:52]} 31. f4 {[%emt 0:00:00]} Re7 {[%emt 0:00:31]} 32. Re3 {[%emt 0:00:00]} Kf8 {[%emt 0:01:33]} 33. Kf2 {[%emt 0:00:00]} f6 {[%emt 0:01:30]} 34. Bf1 {[%emt 0:00:00]} Kf7 {[%emt 0:00:52]} 35. Bc4 {[%emt 0:00:00]} g6 {[%emt 0:01:01]} 36. Rde2 {[%emt 0:00:00]} Bc8 {[%emt 0:00:54]} 37. Bxe6+ {[%emt 0:00:00]} Rxe6 {[%emt 0:00:18]} 38. Rd2 {[%emt 0:00:00]} Rxe3 {[%emt 0:00:12]} 39. Kxe3 {[%emt 0:00:00]} Be6 {[%emt 0:00:18]} 40. Rd3 {[%emt 0:00:00]} Re8 {[%emt 0:00:23]} 41. Kf3 {[%emt 0:00:00]} h5 {[%emt 0:00:57]} 42. Kf2 {[%emt 0:00:00]} Bd5 {[%emt 0:01:01]} 43. h3 {[%emt 0:00:00]} g5 {[%emt 0:00:13]} 44. fxg5 {[%emt 0:00:00]} fxg5 {[%emt 0:00:15]} 45. Kf1 {[%emt 0:00:00]} g4 {[%emt 0:00:14]} 46. h4 {[%emt 0:00:00]} Bf3 {[%emt 0:00:05]} 47. Kf2 {[%emt 0:00:00]} Re2+ {[%emt 0:00:09]} 48. Kf1 {[%emt 0:00:00]} Rb2 {[%emt 0:00:32]} 49. Ke1 {[%emt 0:00:00]} Bd5 {[%emt 0:01:01]} 50. Re3 {[%emt 0:00:00]} Rxb3 {[%emt 0:00:12]} 51. Re5 {[%emt 0:00:00]} Kg6 {[%emt 0:00:06]} 52. Rg5+ {[%emt 0:00:00]} Kh6 {[%emt 0:00:08]} 53. Rf5 {[%emt 0:00:00]} Rxg3 {[%emt 0:00:28]} 54. Rf6+ {[%emt 0:00:00]} Kg7 {[%emt 0:00:27]} 55. Rf5 {[%emt 0:00:00]} b3 {[%emt 0:00:18]} 56. Kd2 {[%emt 0:00:00]} b2 {[%emt 0:00:27]} 57. Rf1 {[%emt 0:00:00]} Be4 {[%emt 0:00:03]} 58. d5 {[%emt 0:00:00]} b1=Q {[%emt 0:00:20]} 59. Rxb1 {[%emt 0:00:00]} Bxb1 {[%emt 0:00:07]} 60. dxc6 {[%emt 0:00:00]} Bf5 {[%emt 0:00:07]} 61. c7 {[%emt 0:00:00]} Bc8 {[%emt 0:00:18]} 62. c6 {[%emt 0:00:00]} Rf3 {[%emt 0:00:05]} 63. Ke2 {[%emt 0:00:00]} Rf8 {[%emt 0:00:05]} 0-1

[Event "Israel-ch Youth U8-18 2024"]
[Site "Kfar Saba"]
[Date "2024.04.17"]
[Round "2.15"]
[White "Zuker, Zivi"]
[Black "Ronin, Ilan"]
[Result "0-1"]
[ECO "B22"]
[WhiteElo "1549"]
[BlackElo "1555"]
[Annotator "NA RC COMBH"]
[PlyCount "64"]
[EventDate "2024.04.10"]
[EventType "swiss"]
[EventCountry "ISR"]
[SourceTitle "playchess.com"]
[Source "ChessBase"]
[SourceQuality "1"]
[TimeControl "5400+30"]

1. e4 {[%emt 0:00:14]} c5 {[%emt 0:00:01]} 2. c3 {[%emt 0:00:15]} e5 {[%emt 0:00:07]} 3. Nf3 {[%emt 0:00:25]} Nc6 {[%emt 1:31:52]} 4. Bc4 {[%emt 0:00:15]} h6 {[%emt 0:00:00]} 5. O-O {[%emt 0:00:43]} Nf6 {[%emt 0:00:00]} 6. Re1 {[%emt 0:01:30]} Be7 {[%emt 0:00:00]} 7. a3 {[%emt 0:03:33]} O-O {[%emt 0:00:00]} 8. b4 {[%emt 0:02:00]} a6 {[%emt 0:00:00]} 9. Bb3 {[%emt 0:02:45]} b5 {[%emt 0:00:00]} 10. bxc5 {[%emt 0:00:58]} Bxc5 {[%emt 0:00:00]} 11. d4 {[%emt 0:01:34]} Bb6 {[%emt 0:00:00]} 12. h3 {[%emt 0:01:37]} d6 {[%emt 0:00:00]} 13. Be3 {[%emt 0:03:09]} Re8 {[%emt 0:00:00]} 14. dxe5 {[%emt 0:03:51]} Nxe5 {[%emt 0:00:00]} 15. Nxe5 {[%emt 0:04:45]} Rxe5 {[%emt 0:00:00]} 16. Bf4 {[%emt 0:04:01]} Rxe4 {[%emt 0:00:00]} 17. Rxe4 {[%emt 0:00:47]} Nxe4 {[%emt 0:00:00]} 18. Qd5 {[%emt 0:02:09]} Be6 {[%emt 0:00:00]} 19. Qxe4 {[%emt 0:04:07]} Bxb3 {[%emt 0:00:00]} 20. Bxd6 {[%emt 0:02:26]} Rc8 {[%emt 0:00:00]} 21. Qe7 {[%emt 0:03:01]} Qxe7 {[%emt 0:00:00]} 22. Bxe7 {[%emt 0:00:17]} Re8 {[%emt 0:00:00]} 23. Nd2 {[%emt 0:00:41]} Rxe7 {[%emt 0:00:00]} 24. Nxb3 {[%emt 0:00:50]} Re2 {[%emt 0:00:00]} 25. Nd4 {[%emt 0:00:45]} Bxd4 {[%emt 0:00:00]} 26. cxd4 {[%emt 0:00:19]} Rd2 {[%emt 0:00:00]} 27. a4 {[%emt 0:01:26]} b4 {[%emt 0:00:00]} 28. Rb1 {[%emt 0:02:10]} Rxd4 {[%emt 0:00:00]} 29. Kf1 {[%emt 0:00:42]} a5 {[%emt 0:00:00]} 30. Ke2 {[%emt 0:01:35]} Rc4 {[%emt 0:00:00]} 31. Kd3 {[%emt 0:01:18]} Rc3+ {[%emt 0:00:00]} 32. Kd2 {[%emt 0:02:43]} Ra3 {[%emt 0:00:00]} 0-1

[Event "Israel-ch Youth U8-18 2024"]
[Site "Kfar Saba"]
[Date "2024.04.17"]
[Round "2.18"]
[White "Sivan, Leeor"]
[Black "Twyble, Michael S"]
[Result "1-0"]
[ECO "A16"]
[WhiteElo "1462"]
[BlackElo "2245"]
[Annotator "TA"]
[PlyCount "63"]
[EventDate "2024.04.10"]
[EventType "swiss"]
[EventCountry "ISR"]
[SourceTitle "playchess.com"]
[Source "ChessBase"]
[SourceQuality "1"]
[TimeControl "5400+30"]

{[%evp 9,63,-16,-13,-60,7,5,11,0,8,1,13,9,25,17,50,31,72,31,62,0,9,10,9,4,17,33,29,36,337,340,341,-12,-11,-77,-61,-236,-227,-362,-106,-108,-50,-100,-45,-210,133,162,616,127,123,128,128,122,1102,75,29995,29996]} 1. c4 {[%emt 0:00:04]} Nf6 {[%emt 0:07:32]} 2. Nc3 {[%emt 0:00:36]} c6 {[%emt 0:00:39]} 3. d3 {[%emt 0:03:13]} d5 {[%emt 0:00:33]} 4. cxd5 {[%emt 0:00:42]} cxd5 {[%emt 0:00:11]} 5. d4 {[%emt 0:02:31]} Nc6 {[%emt 0:00:43]} 6. Bg5 {[%emt 0:01:33]} (6. Nf3 $11 {is superior.}) 6... e6 {[%emt 0:00:22]} (6... Ne4 $15 7. Bd2 e5 (7... Nxd4 8. Qa4+ Nc6 9. Nxe4 $11)) 7. e3 {[%emt 0:00:37]} Be7 {[%emt 0:00:10]} 8. Nf3 {[%emt 0:01:18] The position is equal.} O-O {[%emt 0:00:20]} 9. Bd3 {[%emt 0:02:06]} h6 {[%emt 0:01:10]} 10. Bh4 {[%emt 0:02:35]} Nd7 {[%emt 0:00:14]} 11. Bg3 {[%emt 0:04:04]} Bf6 {[%emt 0:01:17]} 12. Bc2 {[%emt 0:01:33]} Qa5 {[%emt 0:01:38]} 13. Qd3 {[%emt 0:01:05]} g6 {[%emt 0:01:10]} 14. Bh4 {[%emt 0:01:13]} (14. O-O $14) 14... Nb4 {[%emt 0:01:08]} 15. Qd2 {[%emt 0:05:07]} Nxc2+ {[%emt 0:00:23]} 16. Qxc2 {[%emt 0:00:22]} b6 {[%emt 0:01:20]} 17. O-O {[%emt 0:01:12]} Bxh4 {[%emt 0:01:34]} 18. Nxh4 {[%emt 0:00:20]} e5 $2 {[%emt 0:00:52][%mdl 8192] [#]} ({Better is} 18... Kg7 $14) 19. b4 $1 $18 {[%emt 0:05:27][%mdl 512]} Qxb4 {[%emt 0:01:14]} 20. Nxd5 $2 {[%emt 0:00:21]} (20. Nxg6 $1 $18 exd4 21. exd4 (21. Nxd5 Qc5 $18) (21. Nxf8 dxc3 22. Ng6 fxg6 $16) 21... Qxd4 22. Rfd1 (22. Nxf8 Nxf8 23. Rad1 Qc4 $18)) 20... Qd6 $11 {[%emt 0:00:25]} 21. Nc3 {[%emt 0:06:10]} (21. Nc7 $11 Rb8 22. Rfd1) 21... Bb7 $1 $17 {[%emt 0:00:51]} (21... exd4 22. Rad1 $11) 22. f3 $2 {[%emt 0:03:55]} (22. Nb5 $15 Qe7 23. Nxg6 fxg6 24. Qxg6+ Kh8 (24... Qg7 25. Qxg7+ Kxg7 26. Nc7 $16) 25. Qxh6+ Kg8 (25... Qh7 26. Qxh7+ Kxh7 27. Rfd1 $14) 26. Qg6+ Kh8 (26... Qg7 $2 27. Qxg7+ Kxg7 28. Nc7 $18) 27. Qh5+ Qh7 28. Qxh7+ Kxh7 29. Nd6) 22... exd4 $19 {[%emt 0:00:30]} 23. Rfd1 {[%emt 0:01:08]} (23. Ne4 {might work better.} Qe7 24. g3) 23... Qc6 $2 {[%emt 0:01:12]} (23... Qe7 $19 {is more deadly.} 24. Nb5 Qxh4 25. Rxd4 Qe7) 24. Rxd4 $17 {[%emt 0:00:35] [#]} Qe6 {[%emt 0:01:15]} (24... Rac8 $1 $17 {[%cal Of8e8]} 25. Rc1 Nc5) 25. Ne4 {[%emt 0:01:50]} (25. e4 $15) 25... Rac8 {[%emt 0:01:33]} ({Black should play} 25... Nc5 $1 $17 26. Nxc5 Qxe3+ (26... bxc5 27. Qxc5 Qxe3+ 28. Kh1 $17) 27. Qf2 Qxf2+ (27... bxc5 $2 28. Qxe3 cxd4 29. Qxh6 $18) 28. Kxf2 bxc5) 26. Qb1 $2 {[%emt 0:04:02]} (26. Qb3 $15 Qxb3 27. axb3 Bxe4 28. fxe4) 26... f5 $2 {[%emt 0:00:58]} (26... Nc5 $19 {...g5 is the strong threat.} 27. Qf1 Bxe4 28. fxe4 Nxe4) 27. Rd6 $16 {[%emt 0:00:35]} Qe7 {[%emt 0:02:49]} (27... Bxe4 28. Rxe6 Bxb1 29. Rxg6+ (29. Rxb1 g5 $11) 29... Kh7 30. Rxb1 Rf7) 28. Rxg6+ $2 {[%emt 0:02:45]} (28. Qb3+ $18 Qf7 29. Rxg6+ (29. Rxd7 Qxb3 30. axb3 Bc6 $18) 29... Kh7 30. Nd6 Qxb3 31. axb3) 28... Kh7 {[%emt 0:01:35]} 29. Nd6 {[%emt 0:02:46]} Qxh4 {[%emt 0:01:37]} 30. Nxf5 {[%emt 0:00:45] White is more active.} Qd8 {[%emt 0:02:31][%mdl 8192] [#]} (30... Rc1+ $16 31. Qxc1 Rxf5) 31. Ne7 $2 {[%emt 0:10:20]} Qe8 $2 {[%emt 0:02:13][%mdl 8192]} (31... Rc1+ $16 32. Qxc1 Qxe7) 32. Rg8+ {[%emt 0:00:00] Weighted Error Value: White=1.04/Black=0.91.  Loses game:     	White=2     	Black=3      Missed win:     	White=3     	Black=2      Mistake:       	White=4     	Black=4      Inaccurate:     	White=1     	Black=2      OK:         	White=8     	Black=7      Best:        	---       	Black=3      Strong:       	---       	Black=1} 1-0

[Event "Israel-ch Youth U8-18 2024"]
[Site "Kfar Saba"]
[Date "2024.04.17"]
[Round "3.1"]
[White "Levin, Guy"]
[Black "Sokolovsky, Yahli"]
[Result "1/2-1/2"]
[ECO "A45"]
[WhiteElo "2451"]
[BlackElo "2490"]
[Annotator "TA"]
[PlyCount "64"]
[EventDate "2024.04.10"]
[EventType "swiss"]
[EventCountry "ISR"]
[SourceTitle "playchess.com"]
[Source "ChessBase"]
[SourceQuality "1"]
[TimeControl "5400+30"]

{[%evp 14,64,6,0,0,-2,0,0,0,0,0,0,0,-6,0,0,0,0,3,-12,-12,-12,-13,-19,0,-4,-8,-12,0,0,0,0,8,0,0,0,12,0,0,0,9,15,22,0,0,0,0,0,0,0,0,0,0]} 1. d4 {[%emt 0:00:11]} Nf6 {[%emt 0:00:27]} 2. Bg5 {[%emt 0:00:30]} Ng8 {[%emt 0:00:33]} 3. Bc1 {[%emt 0:00:39]} Nf6 {[%emt 0:00:02]} 4. Bg5 {[%emt 0:00:08]} Ne4 {[%emt 0:00:51]} 5. h4 {[%emt 0:00:06]} d5 {[%emt 0:00:07]} 6. Nd2 {[%emt 0:00:54]} Bf5 {[%emt 0:00:16]} 7. Nxe4 {[%emt 0:01:47]} Bxe4 {[%emt 0:00:04]} 8. f3 {[%emt 0:00:38] The position is equal.} h6 {[%emt 0:00:11]} 9. Bf4 {[%emt 0:00:06]} Bh7 {[%emt 0:00:07][%cal Oc7c5]} 10. e3 {[%emt 0:00:14]} e6 {[%emt 0:01:41]} 11. Bd3 {[%emt 0:00:35]} Bxd3 {[%emt 0:02:34]} 12. Qxd3 {[%emt 0:00:03]} c5 {[%emt 0:01:11]} 13. dxc5 {[%emt 0:10:48]} Nd7 {[%emt 0:16:28]} 14. O-O-O {[%emt 0:16:42]} Nxc5 {[%emt 0:08:55]} 15. Qb5+ {[%emt 0:11:22]} Qd7 {[%emt 0:00:25]} 16. Qxd7+ {[%emt 0:00:06]} Nxd7 {[%emt 0:00:10]} 17. h5 {[%emt 0:02:28]} Bc5 {[%emt 0:00:44][%cal Bf8c5,Bc5b6,Bb6c7][%mdl 32]} 18. Ne2 {[%emt 0:00:46]} Ke7 {[%emt 0:08:40]} ({Of course not} 18... e5 19. Bg3 $14) 19. Kb1 {[%emt 0:11:41]} Rac8 {[%emt 0:02:44]} 20. g4 {[%emt 0:02:59]} Bb6 {[%emt 0:03:06]} 21. Rhe1 {[%emt 0:09:12]} Bc7 {[%emt 0:03:01]} 22. Nd4 {[%emt 0:02:08]} a6 {[%emt 0:17:15]} 23. c3 {[%emt 0:04:34]} Nc5 {[%emt 0:01:24]} 24. Kc2 {[%emt 0:01:26]} Kf6 {[%emt 0:00:08] [#] Strongly threatening ...e5.} 25. Bxc7 {[%emt 0:03:53]} Rxc7 {[%emt 0:00:01]} 26. Nb3 {[%emt 0:00:21]} Nxb3 {[%emt 0:06:22]} 27. axb3 $11 {[%emt 0:00:02][%mdl 4096] Endgame. KRR-KRR} Rd8 {[%emt 0:04:38]} 28. e4 {[%emt 0:01:32]} d4 {[%emt 0:03:07]} 29. e5+ {[%emt 0:00:22]} Ke7 {[%emt 0:00:01]} 30. Rd3 {[%emt 0:01:52]} Rd5 {[%emt 0:05:01]} 31. f4 {[%emt 0:01:03]} dxc3 {[%emt 0:00:13]} 32. bxc3 {[%emt 0:00:05]} Rcd7 {[%emt 0:00:18] A rather calm draw.   Weighted Error Value: White=0.04 (flawless) /Black=0.03 (flawless) .  OK:         	White=6     	Black=10     Best:        	---       	Black=1} 1/2-1/2

[Event "Israel-ch Youth U8-18 2024"]
[Site "Kfar Saba"]
[Date "2024.04.17"]
[Round "3.2"]
[White "Rozen, Eytan"]
[Black "Aizenberg, Benny"]
[Result "1-0"]
[ECO "D02"]
[WhiteElo "2499"]
[BlackElo "2409"]
[Annotator "TA"]
[PlyCount "81"]
[EventDate "2024.04.10"]
[EventType "swiss"]
[EventCountry "ISR"]
[SourceTitle "playchess.com"]
[Source "ChessBase"]
[SourceQuality "1"]
[TimeControl "5400+30"]

{[%evp 12,80,6,0,0,7,8,0,1,0,0,19,0,10,0,0,0,-17,46,40,40,45,43,43,76,42,42,42,52,42,39,39,39,39,40,12,4,0,0,0,72,78,73,73,108,107,199,180,189,72,184,122,122,120,195,145,122,87,143,147,176,170,144,119,29988,29989,29989,29990,29997,29998,29999]} 1. d4 {[%emt 0:01:30]} Nf6 {[%emt 0:00:04]} 2. Nf3 {[%emt 0:01:25]} e6 {[%emt 0:00:42]} 3. Bf4 {[%emt 0:02:04]} c5 {[%emt 0:00:37]} 4. e3 {[%emt 0:00:09]} d5 {[%emt 0:00:41]} 5. Nbd2 {[%emt 0:00:39]} Be7 {[%emt 0:05:03]} 6. c3 {[%emt 0:01:09]} Nc6 {[%emt 0:02:15]} 7. Ne5 {[%emt 0:02:02]} Nxe5 {[%emt 0:11:27]} 8. Bxe5 {[%emt 0:00:10]} O-O {[%emt 0:00:46]} 9. Bd3 {[%emt 0:00:28]} b6 {[%emt 0:02:04] The position is equal.} 10. h4 {[%emt 0:03:11]} Nd7 {[%emt 0:05:37]} 11. Nf3 {[%emt 0:06:49][%cal Od3h7] Bxh7+! is the strong threat.} Nxe5 {[%emt 0:05:13]} 12. Nxe5 {[%emt 0:00:10]} Bd6 {[%emt 0:04:37]} 13. Qh5 {[%emt 0:04:25][%csl Gd3][%cal Rh5h7]} f5 {[%emt 0:10:16]} 14. f4 {[%emt 0:01:13]} cxd4 {[%emt 0:48:08]} (14... Bxe5 $11 15. fxe5 Bd7) 15. exd4 $14 {[%emt 0:01:10]} b5 {[%emt 0:00:00]} 16. a3 {[%emt 0:01:26]} Bd7 {[%emt 0:00:00]} 17. Qe2 {[%emt 0:02:24]} Rb8 {[%emt 0:00:00]} 18. Kf2 {[%emt 0:01:07] White is more active.} a5 {[%emt 0:00:00]} 19. g3 {[%emt 0:02:31]} Qc7 {[%emt 0:00:00]} 20. Rhe1 {[%emt 0:01:26]} Bxe5 {[%emt 0:00:00]} 21. Qxe5 {[%emt 0:00:14]} Qxe5 {[%emt 0:00:00]} 22. dxe5 {[%emt 0:01:16]} Rfc8 {[%emt 0:00:00]} 23. h5 {[%emt 0:02:24]} Be8 {[%emt 0:00:00] [#]} 24. h6 $1 {[%emt 0:02:58]} gxh6 {[%emt 0:00:00]} 25. Ke3 {[%emt 0:00:19]} b4 {[%emt 0:00:00]} (25... Rb7 $11) 26. cxb4 $1 $16 {[%emt 0:01:04]} axb4 {[%emt 0:00:00]} 27. a4 $1 {[%emt 0:00:18][%cal Ba3a4,Ba4a5][%mdl 32]} Ra8 {[%emt 0:00:00]} 28. a5 {[%emt 0:00:30]} Rcb8 {[%emt 0:00:00]} (28... Rc7 $16 29. a6 Rac8) 29. Rh1 {[%emt 0:05:23]} h5 {[%emt 0:00:00]} 30. Kd4 {[%emt 0:06:25]} (30. Rhc1 $1 $18 {[%cal Rc1c7] is more deadly. Rc7 would now be deadly.} Bb5 31. Rc7 Bxd3 32. Kxd3) 30... Bb5 {[%emt 0:00:00]} (30... Kf8 $16) 31. Rxh5 {[%emt 0:00:27]} (31. Bxb5 $1 $18 Rxb5 32. a6 (32. Rxh5 Rbxa5 33. Rc1 Ra2 $11)) 31... Bxd3 {[%emt 0:00:00]} 32. Kxd3 $18 {[%emt 0:00:02][%mdl 4096] Endgame. KRR-KRR} Ra6 {[%emt 0:00:00]} (32... Rb7 $16 {keeps fighting.} 33. Rg5+ Kf8) 33. Rh6 {[%emt 0:04:13]} ({White should try} 33. Rc1 $18) 33... Rc8 $16 {[%emt 0:00:00]} 34. Rf6 {[%emt 0:06:37]} Rcc6 {[%emt 0:00:00]} (34... Rc7 $142) 35. Rg1 {[%emt 0:01:07] Black must now prevent g4.} h5 {[%emt 0:00:00]} (35... Rxa5 $2 {perishes.} 36. g4 Rc7 37. gxf5+ (37. Rxe6 Rg7 $18) 37... Rg7 38. Rxg7+ Kxg7 39. fxe6 $18 (39. Rxe6 Ra7 $18)) 36. Rh1 $1 {[%emt 0:04:22]} ({Weaker is} 36. Ra1 Kg7 $11) 36... Rxa5 {[%emt 0:00:00]} 37. Rxh5 {[%emt 0:00:07] White wants to mate with Rg6+.} Ra2 $2 {[%emt 0:00:00][%mdl 8192] [#] This move loses the game for Black.} (37... Ra1 $16) 38. Rg6+ $1 {[%emt 0:00:51] White mates.} Kf7 {[%emt 0:00:00] [#]} 39. Rhg5 $1 {[%emt 0:00:05]} ({Worse is} 39. Rf6+ Kg7 $11) 39... Rb6 {[%emt 0:01:37]} 40. Rg8 {[%emt 0:00:17][%csl Gg8][%cal Rg5g7]} Rxb2 {[%emt 0:01:52]} 41. R5g7# {[%emt 0:00:11] Weighted Error Value: White=0.12 (very precise) /Black=0.36.  Loses game:     	---       	Black=1      Mistake:       	White=3     	Black=6      Inaccurate:     	White=2     	Black=2      OK:         	White=5     	Black=9      Best:        	White=2     	Black=2      Strong:       	White=4     	---} 1-0